fUST/lending_fUST_20250717
["ID","MTS","AMOUNT","RATE_DAILY","PERIOD"]
[372774141,1752757844904,-501.97751132,0.00020241,2]
[372774143,1752757844913,-878.66598948,0.00020262,2]
[372774145,1752757844921,-306.0,0.00020284,3]
[372774147,1752757844929,-476.16111942,0.000203,3]
[372774149,1752757844938,-160.0,0.000203,3]
[372774151,1752757844947,-214.44804168,0.000203,3]
[372774153,1752757844956,-12607.95677342,0.000203,3]
[372774154,1752757844965,-9390.73820233,0.00020314,3]
[372774157,1752757844975,-539.88,0.00020325,2]
[372774158,1752757844984,-517.57,0.00020325,2]
[372774160,1752757844993,-460.0,0.00020325,2]
[372774162,1752757845003,-1710.21,0.00020325,2]
[372774165,1752757845013,-2185.37,0.00020325,2]
[372774167,1752757845027,-892.4,0.00020325,2]
[372774169,1752757845037,-460.0,0.00020325,2]
[372774171,1752757845046,-1356.22,0.00020325,2]
[372774173,1752757845056,-4311.78,0.00020325,2]
[372774174,1752757845066,-626.82,0.00020325,2]
[372774176,1752757845075,-1262.98,0.00020325,2]
[372774178,1752757845085,-623.43,0.00020326,2]
[372774180,1752757845096,-736.1,0.00020327,2]
[372774182,1752757845106,-979.52722,0.00020328,2]
[372774184,1752757845115,-979.52722,0.00020328,2]
[372774186,1752757845124,-151.0,0.00020328,2]
[372774188,1752757845134,-360.0,0.00020346,2]
[372774190,1752757845143,-292.99665788,0.00020366,2]
[372774192,1752757845152,-151.0,0.00020366,2]
[372774194,1752757845161,-151.0,0.00020366,2]
[372774196,1752757845173,-247.18468876,0.00020366,2]
[372774198,1752757845183,-1114.0,0.00020366,2]
[372774201,1752757845193,-881.0,0.00020366,2]
[372774202,1752757845203,-198.0,0.00020366,2]
[372774204,1752757845212,-354.5019453,0.00020389,2]
[372774207,1752757845221,-178.0508326,0.00020389,2]
[372774209,1752757845232,-178.0508326,0.00020389,2]
[372774211,1752757845241,-153.0,0.00020389,2]
[372774213,1752757845251,-178.0508326,0.00020389,2]
[372774215,1752757845260,-178.0508326,0.00020389,2]
[372774217,1752757845269,-153.0,0.00020389,2]
[372774219,1752757845279,-178.0508326,0.00020389,2]
[372774221,1752757845288,-178.0508326,0.00020389,2]
[372774223,1752757845298,-178.0508326,0.00020389,2]
[372774225,1752757845307,-178.0508326,0.00020389,2]
[372774227,1752757845316,-153.0,0.00020389,2]
[372774229,1752757845325,-178.0508326,0.00020389,2]
[372774231,1752757845335,-178.0508326,0.00020389,2]
[372774233,1752757845344,-153.0,0.00020389,2]
[372774235,1752757845353,-178.0508326,0.00020389,2]
[372774237,1752757845363,-153.0,0.00020389,2]
[372774239,1752757845372,-178.0508326,0.00020389,2]
[372774241,1752757845381,-178.0508326,0.00020389,2]
[372774243,1752757845391,-178.0508326,0.00020389,2]
[372774245,1752757845399,-153.0,0.00020389,2]
[372774247,1752757845408,-178.0508326,0.00020389,2]
[372774249,1752757845417,-306.0,0.00020389,2]
[372774251,1752757845431,-178.0508326,0.00020389,2]
[372774253,1752757845440,-356.1016652,0.00020389,2]
[372774255,1752757845449,-154.5680692,0.00020389,2]
[372774257,1752757845458,-178.0508326,0.00020389,2]
[372774259,1752757845467,-153.0,0.00020389,2]
[372774261,1752757845477,-153.0,0.00020389,2]
[372774263,1752757845486,-307.8623264,0.00020389,2]
[372774265,1752757845496,-153.0,0.00020389,2]
[372774267,1752757845506,-153.0,0.00020389,2]
[372774269,1752757845517,-153.0,0.00020389,2]
[372774271,1752757845526,-500.0,0.00020391,2]
[372774273,1752757845536,-10667.67939023,0.000204,3]
[372774275,1752757845546,-151.0,0.000204,2]
[372774277,1752757845555,-3381.448709,0.000204,2]
[372774279,1752757845564,-3381.448709,0.000204,2]
[372774281,1752757845574,-151.776609,0.000204,2]
[372774283,1752757845583,-151.0,0.000204,2]
[372774285,1752757845590,-151.0,0.000204,2]
[372774286,1752757845597,-151.0,0.000204,2]
[372774288,1752757845605,-160.0,0.000204,3]
[372774290,1752757845615,-151.0,0.000204,2]
[372774293,1752757845624,-390.3536995,0.00020408,2]
[372774295,1752757845633,-25000.0,0.00020415,2]
[372774297,1752757845643,-151.0,0.00020415,2]
[372774299,1752757845652,-2157.0,0.00020431,2]
[372774301,1752757845661,-151.0,0.00020449,2]
[372774302,1752757845671,-151.0,0.00020449,2]
[372774305,1752757845680,-151.0,0.00020449,2]
[372774307,1752757845689,-151.0,0.00020449,2]
[372774308,1752757845699,-596.39947,0.00020449,2]
[372774311,1752757845708,-151.0,0.00020449,2]
[372774313,1752757845718,-1500.0,0.00020468,2]
[372774314,1752757845727,-1000.0,0.00020468,2]
[372774316,1752757845737,-1500.0,0.00020468,2]
[372774318,1752757845746,-1500.0,0.00020468,2]
[372774320,1752757845755,-1500.0,0.00020468,2]
[372774322,1752757845764,-1500.0,0.00020468,2]
[372774324,1752757845773,-1348.48,0.00020495,2]
[372774327,1752757845783,-3042.05,0.00020497,2]
[372774328,1752757845792,-2359.1,0.00020497,2]
[372774331,1752757845801,-554.91,0.00020497,2]
[372774333,1752757845812,-1687.71,0.00020497,2]
[372774335,1752757845822,-2087.18,0.00020497,2]
[372774337,1752757845830,-1130.07,0.00020497,2]
[372774339,1752757845841,-505.21,0.00020497,2]
[372774341,1752757845850,-1236.52,0.00020497,2]
[372774342,1752757845859,-9289.39484426,0.000205,2]
[372774344,1752757845867,-460.0,0.000205,2]
[372774347,1752757845877,-460.0,0.000205,2]
[372774349,1752757845886,-151.0,0.000205,2]
[372774351,1752757845895,-460.0,0.000205,2]
[372774353,1752757845904,-491.49,0.000205,2]
[372774355,1752757845913,-3427.23,0.000205,2]
[372774357,1752757845923,-473.39,0.000205,2]
[372774359,1752757845932,-460.0,0.000205,2]
[372774361,1752757845941,-340.697729,0.000205,2]
[372774363,1752757845950,-340.697729,0.000205,2]
[372774365,1752757845960,-1003.99,0.000205,2]
[372774367,1752757845969,-460.0,0.000205,2]
[372774369,1752757845978,-460.0,0.000205,2]
[372774371,1752757845988,-1214.17,0.000205,2]
[372774373,1752757845996,-502.11,0.000205,2]
[372774375,1752757846004,-460.0,0.000205,2]
[372774377,1752757846011,-590.3,0.000205,2]
[372774379,1752757846023,-473.29,0.000205,2]
[372774381,1752757846032,-4567.0,0.00020517,2]
[372774383,1752757846041,-462.83583285,0.00020576,2]
[372774385,1752757846051,-1851.34333141,0.00020576,2]
[372774387,1752757846062,-4165.52249567,0.00020576,2]
[372774389,1752757846072,-7405.37332563,0.00020576,2]
[372774391,1752757846081,-5656.94826636,0.00020576,2]
[372774405,1752757846198,-2123.83212,0.00020576,2]
[372774409,1752757846229,647.06,0.00016935,2]
[372774419,1752757846312,460.0,0.00016935,2]
[372774454,1752757846630,389.74232862,0.00016938,2]
[372774539,1752757847578,-647.06,0.00017209,2]
[372774540,1752757847588,-647.06,0.00017483,2]
[372774541,1752757847597,-647.06,0.00017757,2]
[372774542,1752757847607,-647.06,0.00018031,2]
[372774544,1752757847616,-647.06,0.00018305,2]
[372774546,1752757847626,-647.06,0.00018579,2]
[372774548,1752757847636,-429.2412091,0.00018632,2]
[372774550,1752757847645,-647.06,0.00018853,2]
[372774552,1752757847654,-393.42237341,0.00019127,2]
[372774556,1752757847686,460.0,0.00017038,2]
[372774730,1752757849402,460.0,0.00016938,2]
[372774766,1752757849754,460.0,0.00016935,2]
[372774858,1752757851020,460.0,0.00016933,2]
[372775285,1752757855876,460.0,0.00016933,2]
[372775336,1752757856786,1610.81,0.00016933,2]
[372775407,1752757857736,460.0,0.00016935,2]
[372775577,1752757859451,460.0,0.00016933,2]
[372775601,1752757859673,931.01253402,0.00016933,2]
[372775605,1752757859701,1292.95746598,0.00016933,2]
[372775779,1752757861608,460.0,0.00016935,2]
[372775987,1752757863744,980.09,0.00016938,2]
[372776166,1752757865453,-300.0,0.00017206,2]
[372776170,1752757865475,-460.0,0.00017207,2]
[372776173,1752757865499,-1610.81,0.00017207,2]
[372776177,1752757865523,-2223.97,0.00017207,2]
[372776180,1752757865548,-500.0,0.00017208,2]
[372776184,1752757865571,-272.79349998,0.00017208,2]
[372776187,1752757865594,-460.0,0.00017209,2]
[372776191,1752757865619,-460.0,0.00017212,2]
[372776194,1752757865642,-980.09,0.00017212,2]
[372776197,1752757865669,-500.0,0.0001731,2]
[372776201,1752757865697,-500.0,0.0001731,2]
[372776205,1752757865723,-500.0,0.0001731,2]
[372776208,1752757865749,-500.0,0.0001731,2]
[372776212,1752757865774,-500.0,0.0001731,2]
[372776216,1752757865800,-500.0,0.0001731,2]
[372776219,1752757865827,-500.0,0.0001731,2]
[372776223,1752757865853,-500.0,0.0001731,2]
[372776228,1752757865888,-500.0,0.0001731,2]
[372776231,1752757865917,-500.0,0.0001731,2]
[372776235,1752757865943,-273.55818071,0.0001731,2]
[372776239,1752757865968,-919.72222098,0.0001731,2]
[372776243,1752757865995,-919.72222098,0.0001731,2]
[372776246,1752757866021,-619.33387735,0.0001731,2]
[372776318,1752757866745,460.0,0.00016938,2]
[372776404,1752757867608,150.0,0.00016569,2]
[372776487,1752757868664,1167.03,0.00016938,2]
[372776604,1752757869895,460.0,0.00016938,2]
[372776628,1752757870130,5029.92253402,0.00016839,2]
[372776632,1752757870155,10000.0,0.00016839,2]
[372776635,1752757870179,10000.0,0.00016839,2]
[372776639,1752757870206,3210.03,0.00016839,2]
[372776643,1752757870230,10000.0,0.00016839,2]
[372776646,1752757870255,10000.0,0.00016839,2]
[372776650,1752757870280,10000.0,0.00016839,2]
[372776653,1752757870304,10000.0,0.00016839,2]
[372776657,1752757870328,10000.0,0.00016839,2]
[372776660,1752757870352,10000.0,0.00016839,2]
[372776664,1752757870376,10000.0,0.00016839,2]
[372776667,1752757870401,10000.0,0.00016839,2]
[372776671,1752757870426,10000.0,0.00016839,2]
[372776674,1752757870452,10000.0,0.00016839,2]
[372776678,1752757870476,10000.0,0.00016839,2]
[372777681,1752758038593,2869.2614032,0.00015935,2]
[372777682,1752758041982,3127.0299221,0.00015935,2]
[372777683,1752758042013,6872.9700779,0.00015935,2]
[372777684,1752758054456,6000.0,0.00027397,120]
[372777685,1752758061151,-300.0,0.00016837,2]
[372777686,1752758061187,-328.64053449,0.00016838,2]
[372777687,1752758061219,-613.27066509,0.00016838,2]
[372777688,1752758061251,-613.27066509,0.00016838,2]
[372777689,1752758061284,-613.27066509,0.00016838,2]
[372777690,1752758061315,-613.27066509,0.00016838,2]
[372777691,1752758061346,-613.27066509,0.00016838,2]
[372777692,1752758061378,-613.27066509,0.00016838,2]
[372777693,1752758061411,-613.27066509,0.00016838,2]
[372777694,1752758061600,-613.27066509,0.00016838,2]
[372777695,1752758061632,-613.27066509,0.00016838,2]
[372777696,1752758061664,-613.27066509,0.00016838,2]
[372777697,1752758061696,-613.27066509,0.00016838,2]
[372777698,1752758061729,-613.27066509,0.00016838,2]
[372777699,1752758061762,-613.27066509,0.00016838,2]
[372777700,1752758061792,-613.27066509,0.00016838,2]
[372777701,1752758061823,-613.27066509,0.00016838,2]
[372777702,1752758062068,-613.27066509,0.00016838,2]
[372777703,1752758062105,-613.27066509,0.00016838,2]
[372777704,1752758062138,-618.84585296,0.00016838,2]
[372777705,1752758062171,-618.84585296,0.00016838,2]
[372777706,1752758062204,-618.84585296,0.00016838,2]
[372777707,1752758062235,-618.84585296,0.00016838,2]
[372777708,1752758062268,-618.84585296,0.00016838,2]
[372777709,1752758062299,-618.84585296,0.00016838,2]
[372777710,1752758062414,-618.84585296,0.00016838,2]
[372777711,1752758062450,-618.84585296,0.00016838,2]
[372777712,1752758062481,-500.0,0.00016838,2]
[372777713,1752758062511,-500.0,0.00016838,2]
[372777714,1752758062541,-394.65912441,0.00016838,2]
[372777715,1752758062570,-313.41361692,0.00016838,2]
[372777716,1752758062599,-500.0,0.00016838,2]
[372777717,1752758062629,-500.0,0.00016838,2]
[372777718,1752758062659,-500.0,0.00016838,2]
[372777719,1752758062692,-550.0,0.00016838,2]
[372777720,1752758062959,-500.0,0.00016838,2]
[372777721,1752758062989,-500.0,0.00016838,2]
[372777722,1752758063019,-500.0,0.00016838,2]
[372777723,1752758063050,-512.3983558,0.00016838,2]
[372777724,1752758063081,-500.0,0.00016838,2]
[372777725,1752758063114,-174.94166262,0.00016838,2]
[372777726,1752758063146,-500.0,0.00016838,2]
[372777727,1752758063181,-500.0,0.00016838,2]
[372777728,1752758063369,-500.0,0.00016838,2]
[372777729,1752758063400,-500.0,0.00016838,2]
[372777730,1752758063431,-125.31996316,0.00016838,2]
[372777731,1752758064470,-374.68003684,0.00016838,2]
[372777732,1752758064500,-500.0,0.00016838,2]
[372777733,1752758064531,-224.64998098,0.00016838,2]
[372777734,1752758064561,-500.0,0.00016838,2]
[372777735,1752758064592,-500.0,0.00016838,2]
[372777736,1752758064623,-500.0,0.00016838,2]
[372777737,1752758064654,-500.0,0.00016838,2]
[372777738,1752758064683,-500.0,0.00016838,2]
[372777739,1752758064718,-500.0,0.00016838,2]
[372777740,1752758064887,-4292.11786495,0.00016838,2]
[372777741,1752758065128,-1415.7642701,0.00016838,2]
[372777742,1752758065158,-500.0,0.00016838,2]
[372777743,1752758065191,-500.0,0.00016838,2]
[372777744,1752758065221,-500.0,0.00016838,2]
[372777745,1752758065252,-500.0,0.00016838,2]
[372777746,1752758065283,-500.0,0.00016838,2]
[372777747,1752758065314,-500.0,0.00016838,2]
[372777748,1752758065346,-500.0,0.00016838,2]
[372777749,1752758065458,-500.0,0.00016838,2]
[372777750,1752758065490,-500.0,0.00016838,2]
[372777751,1752758065521,-500.0,0.00016838,2]
[372777752,1752758065552,-500.0,0.00016838,2]
[372777753,1752758065583,-500.0,0.00016838,2]
[372777754,1752758065614,-500.0,0.00016838,2]
[372777755,1752758065645,-500.0,0.00016838,2]
[372777756,1752758065676,-500.0,0.00016838,2]
[372777757,1752758065707,-500.0,0.00016838,2]
[372777758,1752758065751,-500.0,0.00016838,2]
[372777759,1752758065923,-500.0,0.00016838,2]
[372777760,1752758065958,-500.0,0.00016838,2]
[372777761,1752758065992,-500.0,0.00016838,2]
[372777762,1752758066025,-500.0,0.00016838,2]
[372777763,1752758066058,-500.0,0.00016838,2]
[372777764,1752758066093,-500.0,0.00016838,2]
[372777765,1752758066127,-500.0,0.00016838,2]
[372777766,1752758066159,-500.0,0.00016838,2]
[372777767,1752758066192,-388.43197803,0.00016838,2]
[372777768,1752758066223,-460.0,0.00016838,2]
[372777769,1752758066467,-460.0,0.00016838,2]
[372777770,1752758066498,-460.0,0.00016838,2]
[372777771,1752758067462,-460.0,0.00016838,2]
[372777772,1752758069569,-9709.12172383,0.00016839,2]
[372777773,1752758069806,-10000.0,0.00016839,2]
[372777774,1752758070027,-10000.0,0.00016839,2]
[372777775,1752758070205,-10000.0,0.00016839,2]
[372777776,1752758070384,-10000.0,0.00016839,2]
[372777777,1752758070557,-10000.0,0.00016839,2]
[372777778,1752758070783,-10000.0,0.00016839,2]
[372777779,1752758071006,-10000.0,0.00016839,2]
[372777780,1752758071208,-10000.0,0.00016839,2]
[372777781,1752758071387,-10000.0,0.00016839,2]
[372777782,1752758071551,-4171.75421738,0.00016837,2]
[372777783,1752758071712,-1656.49156524,0.00016839,2]
[372777784,1752758078356,-150.0,0.00016753,2]
[372777785,1752758078400,-9700.0,0.00016839,2]
[372777786,1752758078589,-10000.0,0.00016839,2]
[372777787,1752758078797,-10000.0,0.00016839,2]
[372777788,1752758078986,-10000.0,0.00016839,2]
[372777789,1752758079143,-10000.0,0.00016839,2]
[372777790,1752758079368,-10000.0,0.00016839,2]
[372777791,1752758079529,-10000.0,0.00016839,2]
[372777792,1752758079695,-10000.0,0.00016839,2]
[372777793,1752758079887,-10000.0,0.00016839,2]
[372777794,1752758080112,-10000.0,0.00016839,2]
[372777795,1752758083074,-10000.0,0.00016839,2]
[372777796,1752758088407,-10000.0,0.00016839,2]
[372777797,1752758088597,-10000.0,0.00016839,2]
[372777798,1752758088828,-694.43417691,0.00016839,2]
[372777799,1752758088860,-460.0,0.00016933,2]
[372777800,1752758088892,-460.0,0.00016933,2]
[372777801,1752758088923,-460.0,0.00016933,2]
[372777802,1752758088954,-460.0,0.00016933,2]
[372777803,1752758088985,-460.0,0.00016933,2]
[372777804,1752758089017,-460.0,0.00016933,2]
[372777805,1752758089048,-170.45359655,0.00016933,2]
[372777806,1752758089080,-1109.18,0.00016933,2]
[372777807,1752758089219,-1239.14,0.00016933,2]
[372777808,1752758089251,-556.17591022,0.00016933,2]
[372777809,1752758089284,-460.0,0.00016933,2]
[372777810,1752758089316,-460.0,0.00016933,2]
[372777811,1752758089347,-813.99,0.00016933,2]
[372777812,1752758089378,-460.0,0.00016933,2]
[372777813,1752758089411,-460.0,0.00016933,2]
[372777814,1752758089442,-460.0,0.00016933,2]
[372777815,1752758089557,-460.0,0.00016933,2]
[372777816,1752758089588,-460.0,0.00016933,2]
[372777817,1752758089619,-460.0,0.00016933,2]
[372777818,1752758089649,-460.0,0.00016933,2]
[372777819,1752758089681,-906.98,0.00016933,2]
[372777820,1752758089712,-465.3,0.00016933,2]
[372777821,1752758089745,-460.0,0.00016933,2]
[372777822,1752758089775,-574.27,0.00016935,2]
[372777823,1752758089804,-460.0,0.00016935,2]
[372777824,1752758089834,-126.9,0.00016935,2]
[372777825,1752758089997,-333.1,0.00016935,2]
[372777826,1752758090028,-500.0,0.00016935,2]
[372777827,1752758090058,-500.0,0.00016935,2]
[372777828,1752758090089,-564.84,0.00016935,2]
[372777829,1752758090123,-500.0,0.00016935,2]
[372777830,1752758090155,-460.0,0.00016935,2]
[372777831,1752758090187,-460.0,0.00016935,2]
[372777832,1752758090216,-415.02916065,0.00016935,2]
[372777833,1752758090246,-460.0,0.00016935,2]
[372777834,1752758090277,-460.0,0.00016935,2]
[372777835,1752758090307,-234.0616787,0.00016935,2]
[372777836,1752758090579,-225.9383213,0.00016935,2]
[372777837,1752758090610,-460.0,0.00016935,2]
[372777838,1752758091117,-126.35263264,0.00016935,2]
[372777839,1752758091134,-460.0,0.00016935,2]
[372777840,1752758091185,-460.0,0.00016838,2]
[372777841,1752758091217,-500.0,0.00016937,2]
[372777842,1752758091248,-460.0,0.00016938,2]
[372777843,1752758091278,-460.0,0.00016938,2]
[372777844,1752758091309,-460.0,0.00016938,2]
[372777845,1752758091338,-460.0,0.00016938,2]
[372777846,1752758091368,-460.0,0.00016938,2]
[372777847,1752758091400,-482.49,0.00016938,2]
[372777848,1752758091430,-728.77,0.00016938,2]
[372777849,1752758091461,-500.0,0.00016938,2]
[372777850,1752758091602,-500.0,0.00016938,2]
[372777851,1752758091612,-500.0,0.00016938,2]
[372777852,1752758091622,-460.0,0.00016938,2]
[372777853,1752758091631,-460.0,0.00016938,2]
[372777854,1752758091642,-460.0,0.00016938,2]
[372777855,1752758091652,-460.0,0.00016938,2]
[372777856,1752758091662,-460.0,0.00016938,2]
[372777857,1752758091671,-460.0,0.00016938,2]
[372777858,1752758091680,-582.8016787,0.00016938,2]
[372777859,1752758091717,-1889.4383213,0.00016938,2]
[372777860,1752758091747,-2886.5233574,0.00016938,2]
[372777861,1752758091778,-448.0766426,0.00016938,2]
[372777862,1752758091788,-460.0,0.00016938,2]
[372777863,1752758091797,-460.0,0.00016938,2]
[372777864,1752758091806,-786.14,0.00016938,2]
[372777865,1752758091815,-460.0,0.00016938,2]
[372777866,1752758091825,-473.51,0.00016938,2]
[372777867,1752758091834,-460.0,0.00016938,2]
[372777868,1752758091844,-460.0,0.00016938,2]
[372777869,1752758091853,-997.86,0.00016938,2]
[372777870,1752758091862,-218.4516787,0.00016938,2]
[372777871,1752758091897,-241.5483213,0.00016938,2]
[372777872,1752758091928,-988.24,0.00016938,2]
[372777873,1752758091960,-460.0,0.00016938,2]
[372777874,1752758091990,-460.0,0.00016938,2]
[372777875,1752758092019,-460.0,0.00016938,2]
[372777876,1752758092049,-460.0,0.00016938,2]
[372777877,1752758092719,464.58283235,0.00016938,2]
[372777878,1752758098518,460.0,0.00016935,2]
[372777879,1752758098962,460.0,0.00016933,2]
[372777880,1752758099880,460.0,0.00016938,2]
[372777881,1752758100548,460.0,0.00016935,2]
[372777882,1752758101607,460.0,0.00016933,2]
[372777883,1752758103263,460.0,0.00016935,2]
[372777884,1752758103519,460.0,0.00016938,2]
[372777885,1752758106318,175.84052505,0.00016838,2]
[372777886,1752758106343,284.15947495,0.00016838,2]
[372777887,1752758108444,1532.84,0.00016938,2]
[372777888,1752758111562,669.86,0.00016933,2]
[372777889,1752758114563,618.76,0.00016933,2]
[372777890,1752758115421,460.0,0.00016938,2]
[372777891,1752758117070,461.91597558,0.00016938,2]
[372777892,1752758117660,460.0,0.00016938,2]
[372777893,1752758118925,460.0,0.00016938,2]
[372777894,1752758122836,460.0,0.00016938,2]
[372777895,1752758126233,460.49723558,0.00016938,2]
[372777896,1752758126838,878.66598948,0.00016938,2]
[372777897,1752758128985,460.0,0.00016938,2]
[372777898,1752758129327,460.0,0.00016933,2]
[372777899,1752758135402,460.0,0.00016933,2]
[372777900,1752758138211,1873.30132441,0.00016938,2]
[372777901,1752758138237,214.16867559,0.00016938,2]
[372777902,1752758138756,592.99801124,0.00016938,2]
[372777903,1752758141637,460.0,0.00016938,2]
[372777904,1752758142088,406.0158418,0.00016838,2]
[372777905,1752758142526,150.0,0.00015982,2]
[372777906,1752758143722,460.0,0.00016838,2]
[372777907,1752758144000,460.0,0.00016935,2]
[372777908,1752758144534,460.0,0.00016838,2]
[372777909,1752758147059,460.0,0.00016838,2]
[372777910,1752758147221,460.0,0.00016938,2]
[372777911,1752758147580,460.0,0.00016938,2]
[372777912,1752758148127,460.0,0.00016938,2]
[372777913,1752758149030,554.92728643,0.00016838,2]
[372777914,1752758153520,460.0,0.00016938,2]
[372777915,1752758158262,460.0,0.00016938,2]
[372777916,1752758159473,541.86479735,0.00016938,2]
[372777917,1752758161707,819.81,0.00016938,2]
[372777918,1752758162948,460.0,0.00016838,2]
[372777919,1752758164924,373.91665487,0.00016838,2]
[372777920,1752758166511,460.0,0.00016938,2]
[372777921,1752758167391,460.0,0.00016838,2]
[372777922,1752758170659,366.29873272,0.00016933,2]
[372777923,1752758170684,93.70126728,0.00016933,2]
[372777924,1752758174310,500.0,0.00016933,2]
[372777925,1752758174446,460.0,0.00016933,2]
[372777926,1752758174571,500.0,0.00016934,2]
[372777927,1752758174832,500.0,0.00016937,2]
[372777928,1752758175303,500.0,0.00016937,2]
[372777929,1752758175546,500.0,0.00016938,2]
[372777930,1752758175786,500.0,0.00016938,2]
[372777931,1752758176026,500.0,0.00016938,2]
[372777932,1752758176497,460.0,0.00016838,2]
[372777933,1752758179280,460.0,0.00016935,2]
[372777934,1752758179847,460.0,0.00016938,2]
[372777935,1752758182770,460.0,0.00016838,2]
[372777936,1752758187087,460.0,0.00016935,2]
[372777937,1752758187382,460.0,0.00016938,2]
[372777938,1752758188296,460.0,0.00016938,2]
[372777939,1752758188552,2726.29873272,0.00016739,2]
[372777940,1752758188578,10000.0,0.00016739,2]
[372777941,1752758188604,10000.0,0.00016739,2]
[372777942,1752758188630,10000.0,0.00016739,2]
[372777943,1752758188655,10000.0,0.00016739,2]
[372777944,1752758188681,10000.0,0.00016739,2]
[372777945,1752758188707,10000.0,0.00016739,2]
[372777946,1752758188734,10000.0,0.00016739,2]
[372777947,1752758188760,10000.0,0.00016739,2]
[372777948,1752758188786,10000.0,0.00016739,2]
[372777949,1752758188811,10000.0,0.00016739,2]
[372777950,1752758188836,10000.0,0.00016739,2]
[372777951,1752758188862,10000.0,0.00016739,2]
[372777952,1752758188886,10000.0,0.00016739,2]
[372777953,1752758188910,10000.0,0.00016739,2]
[372777954,1752758188936,10000.0,0.00016739,2]
[372777955,1752758188961,10000.0,0.00016739,2]
[372777956,1752758188989,10000.0,0.00016739,2]
[372777957,1752758189015,10000.0,0.00016739,2]
[372777958,1752758189041,10000.0,0.00016739,2]
[372777959,1752758189066,10000.0,0.00016739,2]
[372777960,1752758189091,10000.0,0.00016739,2]
[372777961,1752758189116,10000.0,0.00016739,2]
[372777962,1752758189143,10000.0,0.00016739,2]
[372777963,1752758189168,10000.0,0.00016739,2]
[372777964,1752758189193,10000.0,0.00016739,2]
[372777965,1752758189218,10000.0,0.00016739,2]
[372777966,1752758189244,10000.0,0.00016739,2]
[372777967,1752758189269,10000.0,0.00016739,2]
[372777968,1752758190306,3127.0299221,0.00016083,2]
[372777969,1752758191692,-168.0,0.00016083,2]
[372777970,1752758199190,-195.75539997,0.0001603,2]
[372777971,1752758200745,-178.89142325,0.0001603,2]
[372777972,1752758205394,-226.08411576,0.0001603,2]
[372777973,1752758207006,-105.63433502,0.0001603,2]
[372777974,1752758207035,-115.73756754,0.00016083,2]
[372777975,1752758209151,-210.53,0.00016083,2]
[372777976,1752758211976,-21278.0,0.00016083,2]
[372777977,1752758213414,-0.70251036,0.00016083,2]
[372777978,1752758243958,-152.26190968,0.00016022,2]
[372777979,1752758246122,-286.45922653,0.00016022,2]
[372777980,1752758248350,-222.71466306,0.00016022,2]
[372777981,1752758254594,637.519146,0.00013699,2]
[372777982,1752758254945,-248.12344024,0.00016022,2]
[372777983,1752758256505,-235.72534005,0.00016022,2]
[372777985,1752758261298,-181.54071832,0.00016022,2]
[372777986,1752758263039,-260.52983602,0.00016022,2]
[372777987,1752758274230,-300.0,0.00016738,2]
[372777988,1752758281396,-5539.5766426,0.00016739,2]